Cogmind - Beta 11.1 @@@ ROGUE MODE // 2022.04.29 @ 07:42:23 Player: Demise Result: Destroyed by CL-ANK with CL-ANK's Mallet Performance ------------- Evolutions (1) 500 Regions Visited (6) 1200 Robots Destroyed (107) 535 Value Destroyed (2438) 2438 Prototype IDs (45) 900 Alien Tech Used (0) 0 Bonus (580) 580 TOTAL SCORE: 6153 Bonus ------- High Alert Combat Kills 234 Follower Combat Kills 46 Aligned with FarCom 300 Cogmind --------- Core Integrity 0/400 Matter 290/300 Energy 170/170 System Corruption 0% Temperature Cool (0) Movement Treading (240) Ox1 Location -8/Mines Parts ------- > --- POWER (1) -------- Makeshift Power Source > --- PROPULSION (2) --- Light Treads Light Treads > --- UTILITY (4) ------ High-capacity Storage Unit Signal Interpreter Hardened Light Armor Plating Hardened Light Armor Plating > --- WEAPON (2) ------- Heavy Assault Rifle Longsword +1 > --- INVENTORY (20) --- Makeshift Power Source Reinforced Fission Core Improved VTOL Module Improved VTOL Module Superbattery (1500) Gravity Neutralizer Machine Analyzer Experimental Sensor Array Advanced Launcher Guidance Computer Experimental Core Analyzer Reactive Plating Hacking Suite Hacking Suite EX Chip 2 EX Chip 2 System Purifier Long-range Tractor Beam Supersonic Drone Bay (1/1) 8R-AWN's Boregun Rocket Launcher Peak State ------------ > --- POWER ------------ Reinforced Fission Core > --- PROPULSION ------- Light Treads Light Treads > --- UTILITY ---------- High-capacity Storage Unit Signal Interpreter Hardened Light Armor Plating Reactive Plating > --- WEAPON ----------- Heavy Assault Rifle Longsword +1 > --- INVENTORY -------- Makeshift Power Source Makeshift Power Source Improved VTOL Module Superbattery Gravity Neutralizer Machine Analyzer Experimental Sensor Array Advanced Launcher Guidance Computer Experimental Core Analyzer Hardened Light Armor Plating Hacking Suite Hacking Suite EX Chip 2 EX Chip 2 System Purifier Long-range Tractor Beam Supersonic Drone Bay 8R-AWN's Boregun Rocket Launcher [Rating: 35] Favorites ----------- Power Light Deuterium Engine Engine Light Deuterium Engine Power Core Light Nuclear Core Propulsion Light Treads Treads Light Treads Utility High-capacity Storage Unit Device Seismic Detector Storage High-capacity Storage Unit Processor Improved Targeting Computer Protection Reactive Plating Weapon Improved Assault Rifle Energy Gun Medium Laser Energy Cannon Advanced Beam Cannon Ballistic Gun Improved Assault Rifle Launcher Rocket Launcher Slashing Weapon Longsword +1 Special Melee Weapon Datajack Build | -11 -10 -10 -9 -9 -9 -8 ------- Run | Scr Mat Min Mat Min Exi Min Slots Evolved 2 | . . . 2 . . . Power . | . . . . . . . Propulsion . | . . . . . . . Utility 2 | . . . 2 . . . Weapon . | . . . . . . . Parts Attached 108 | 8 11 2 57 2 27 1 Power 13 | 1 1 . 7 . 4 . Engine 8 | 1 . . 5 . 2 . Core 5 | . 1 . 2 . 2 . Reactor . | . . . . . . . Propulsion 21 | 2 1 . 15 . 3 . Treads 21 | 2 1 . 15 . 3 . Leg . | . . . . . . . Wheel . | . . . . . . . Hover . | . . . . . . . Flight . | . . . . . . . Utility 39 | 2 4 2 19 2 9 1 Device 9 | 1 . 1 5 1 1 . Storage 7 | 1 2 1 . 1 2 . Processor 5 | . 1 . 2 . 2 . Hackware . | . . . . . . . Protection 18 | . 1 . 12 . 4 1 Artifact . | . . . . . . . Weapon 35 | 3 5 . 16 . 11 . Energy Gun 4 | 2 1 . 1 . . . Energy Cannon 1 | . . . 1 . . . Ballistic Gun 23 | 1 4 . 13 . 5 . Ballistic Cannon . | . . . . . . . Launcher 3 | . . . 1 . 2 . Special Weapon . | . . . . . . . Impact Weapon . | . . . . . . . Slashing Weapon 3 | . . . . . 3 . Piercing Weapon . | . . . . . . . Special Melee Weapon 1 | . . . . . 1 . Unidentified Prototypes 5 | . . . 5 . . . Parts Lost 18 | . 1 . 7 . 10 . Power 3 | . . . 2 . 1 . Propulsion 4 | . . . 1 . 3 . Utility 6 | . . . 3 . 3 . Weapon 5 | . 1 . 1 . 3 . Highest Loss Streak 5 | . 1 . 2 . 5 . To Critical Strikes 5 | . . . . . 5 . Average Slot Usage (%) 98 | . 99 100 99 100 97 100 Engine 7 | . 4 . 7 11 9 11 Core 3 | . 9 14 3 . . . Treads 23 | . 28 28 22 22 21 22 Device 8 | . 2 13 6 22 8 . Storage 11 | . 14 14 11 11 10 11 Processor 1 | . . . 1 . 4 11 Protection 17 | . 10 . 24 11 20 22 Ballistic Gun 19 | . 20 28 21 22 10 11 Launcher 1 | . . . . . 4 . Slashing Weapon 1 | . . . . . 4 11 Naked Turns . | . . . . . . . Heaviest Build 78 | 14 30 50 78 62 76 65 Greatest Support 43 | 40 40 40 43 43 43 40 Greatest Overweight (x) 1 | . . 1 1 1 1 1 Average Overweight (x) . | . . . 1 1 . 1 Largest Inventory Capacity 20 | 8 15 20 20 20 20 20 Average Capacity 18 | 7 13 19 20 20 17 20 Most Carried 20 | 2 15 20 20 20 20 20 Average Carried 16 | . 11 18 19 20 13 20 Final Capacity 20 | 8 15 20 20 20 20 20 Final Carried 20 | 2 15 20 20 20 20 20 Class Distribution -------------------- 67% | Mutant 32% | Scavenger-Mutant Dominant Class ---------------- Mutant | -10/Materials Mutant | -10/Mines Scavenger-Mutant | -9/Materials Mutant | -9/Mines Mutant | -9/Exiles Scavenger-Mutant | -8/Mines Resources | -11 -10 -10 -9 -9 -9 -8 ----------- Run | Scr Mat Min Mat Min Exi Min Matter Collected 3162 | 301 206 54 1779 50 772 . Remotely . | . . . . . . . Salvage Created 4129 | 166 691 87 2419 18 531 217 Parts 258 | 14 31 6 144 3 51 9 Haulers Intercepted 8 | . 2 . 6 . . . Recyclers Shooed 3 | . 1 1 1 . . . Parts Field Recycled . | . . . . . . . Retrieved Matter . | . . . . . . . Parts Self-Destructed . | . . . . . . . Prevented . | . . . . . . . Kills | -11 -10 -10 -9 -9 -9 -8 ------- Run | Scr Mat Min Mat Min Exi Min Combat Hostiles Destroyed 71 | . 15 3 42 . 7 4 Melee 5 | . . . . . 1 4 Guns 60 | . 15 3 42 . . . AOE 6 | . . . . . 6 . Classes Destroyed 15 | 3 4 . 4 1 3 . Worker 6 | 1 . . 5 . . . Builder 1 | . . . . 1 . . Tunneler 4 | 4 . . . . . . Hauler 8 | . 2 . 6 . . . Recycler 5 | 1 1 . 3 . . . Operator 2 | . . . 2 . . . Turret 1 | . . . . . 1 . Watcher 5 | . 1 . 4 . . . Swarmer 12 | . 3 2 7 . . . Grunt 40 | . 12 1 23 . . 4 Brawler 1 | . . . 1 . . . Protector 1 | . . . 1 . . . Sentry 10 | . . . 10 . . . Zionite 8 | . . . . . 8 . Assembled 6 | . . . . . 6 . Best Kill Streak 7 | 4 4 2 7 1 7 3 Combat Bots Only 7 | . 4 2 7 . 5 3 Max Kills in Single Turn 5 | 1 1 1 2 1 5 1 Gunslinging 1 | . . . 1 . . . Exploded 5 | . . . . . 5 . Melee 1 | . . . . . 1 1 Uniques/NPCs Destroyed 4 | . . . . . 4 . 8R-AWN (-9/Exiles) EX-BIN (-9/Exiles) EX-DEC (-9/Exiles) EX-HEX (-9/Exiles) Combat | -11 -10 -10 -9 -9 -9 -8 -------- Run | Scr Mat Min Mat Min Exi Min Damage Taken 4488 | . 614 38 2215 . 1202 419 Core 593 | . 112 6 255 . 105 115 Absorbed by Shields 100 | . . . . . 100 . Redirected to Shielding 71 | . 24 . 47 . . . Regen/Repaired (Parts) 243 | . 63 . 180 . . . Core Remaining (%) 76 | 100 . 52 . . . . Volleys Fired 417 | 21 73 4 196 5 118 . Largest 2 | 2 2 2 2 2 2 . Hottest 70 | 70 70 40 46 46 46 . Shots Fired 736 | 41 144 8 390 10 143 . Gun 719 | 41 144 8 388 10 128 . Cannon . | . . . . . . . Launcher 17 | . . . 2 . 15 . Special . | . . . . . . . Kinetic 654 | 21 99 8 388 10 128 . Thermal 65 | 20 45 . . . . . Explosive 17 | . . . 2 . 15 . Electromagnetic . | . . . . . . . Robot Hit Streak 23 | 6 21 23 18 2 17 . Robot Miss Streak 5 | 4 4 2 4 2 5 . Penetration Max . | . . . . . . . Secondary Targets 6 | . 1 1 4 . . . Max Gunslinging Chain 1 | . 1 1 1 . . . Shots Hit Robots 550 | 20 93 5 284 6 125 17 Core Hits 192 | 8 41 3 95 1 39 5 Critical Kills 2 | . 1 . 1 . . . Critical Parts Destroyed 3 | . . . 2 . 1 . Critical Strikes 14 | 1 6 . 3 . 3 1 Burn 6 | 1 5 . . . . . Destroy 5 | . 1 . 3 . 1 . Sever 3 | . . . . . 2 1 Melee Attacks 51 | . . . . . 32 19 Impact . | . . . . . . . Slashing 47 | . . . . . 28 19 Piercing . | . . . . . . . Sneak Attacks 7 | . . . . . 7 . Combat Hostiles . | . . . . . . . Follow-up Attacks . | . . . . . . . Damage Inflicted 9604 | 212 988 63 4030 106 3495 710 Guns 6744 | 212 988 63 4030 106 1345 . Cannons . | . . . . . . . Explosions 598 | . . . . . 598 . Melee 2262 | . . . . . 1552 710 Ramming . | . . . . . . . Kinetic 6243 | 89 610 63 4030 106 1345 . Thermal 501 | 123 378 . . . . . Explosive 598 | . . . . . 598 . Electromagnetic . | . . . . . . . Impact . | . . . . . . . Slashing 2262 | . . . . . 1552 710 Piercing . | . . . . . . . Highest Corruption . | . . . . . . . Average Corruption . | . . . . . . . Corruption Purged . | . . . . . . . Corruption Blocked . | . . . . . . . Overload Shots . | . . . . . . . Overflow Damage 143 | . . . . . 138 5 Projectiles . | . . . . . . . Explosions 21 | . . . . . 21 . Melee 122 | . . . . . 117 5 Knockbacks . | . . . . . . . Impact . | . . . . . . . Kinetic . | . . . . . . . Secondary . | . . . . . . . Self-Inflicted Damage 35 | . . . . . 35 . Shots 1 | . . . . . 1 . Rammed . | . . . . . . . Targets Rammed . | . . . . . . . Kicked . | . . . . . . . Crushed . | . . . . . . . Highest Temperature 510 | 200 372 . 510 . 176 54 Average Temperature 97 | 78 116 . 115 . 58 16 Received Heat Transfer 1557 | . 324 . 1008 . . 225 Effects 15 | . 1 . 14 . . . Shutdowns 2 | . . . 2 . . . Energy Bleed 3 | . 1 . 2 . . . Interference 3 | . . . 3 . . . Matter Decay 3 | . . . 3 . . . Short Circuit 1 | . . . 1 . . . Damage (minor) 3 | . . . 3 . . . Siege Activations . | . . . . . . . Robots Corrupted . | . . . . . . . Combat Hostiles . | . . . . . . . Parts Fried . | . . . . . . . Impact Corruptions . | . . . . . . . Robots Melted . | . . . . . . . Combat Hostiles . | . . . . . . . Parts Melted 3 | . 3 . . . . . Heat Transferred 1875 | 444 1431 . . . . . Parts Sabotaged . | . . . . . . . Parts Stolen . | . . . . . . . Parts Stripped . | . . . . . . . Power Chain Reactions . | . . . . . . . Missiles Intercepted . | . . . . . . . Alert | -11 -10 -10 -9 -9 -9 -8 ------- Run | Scr Mat Min Mat Min Exi Min Peak Influence 881 | 30 292 139 881 349 . 105 Initial 343 | . 19 70 53 343 . . Average 267 | 10 145 42 405 175 . 70 Maximum Alert Level 3 | . 1 . 3 1 . . Low Security (%) 53 | 100 68 100 30 64 . 100 Level 1 22 | . 31 . 23 35 . . Level 2 10 | . . . 20 . . . Level 3 12 | . . . 24 . . . Level 4 . | . . . . . . . Level 5 . | . . . . . . . High Security . | . . . . . . . Max Security . | . . . . . . . Squads Dispatched 10 | . 3 . 7 . . . Investigation 7 | . 3 . 4 . . . Extermination . | . . . . . . . Reinforcement 1 | . . . 1 . . . Assault 2 | . . . 2 . . . Garrison . | . . . . . . . Intercept . | . . . . . . . Searches Triggered . | . . . . . . . Construction Impeded . | . . . . . . . Haulers Reinforced . | . . . . . . . Active Scanning Responses . | . . . . . . . Cargo Convoy Interrupts . | . . . . . . . Stealth | -11 -10 -10 -9 -9 -9 -8 --------- Run | Scr Mat Min Mat Min Exi Min Distress Signals 6 | . 2 . 4 . . . Communications Jammed . | . . . . . . . Distress Signals . | . . . . . . . Times Spotted 140 | . 26 5 71 . 31 7 Peak Tracking Total 9 | . 5 2 8 . 9 4 Tactical Retreats 11 | . 1 . 4 . 5 1 Traps | -11 -10 -10 -9 -9 -9 -8 ------- Run | Scr Mat Min Mat Min Exi Min Traps Triggered . | . . . . . . . Indirectly . | . . . . . . . Trap Hack Attempts . | . . . . . . . Triggered . | . . . . . . . Disarmed . | . . . . . . . Reprogrammed . | . . . . . . . Reused . | . . . . . . . Traps Extracted . | . . . . . . . Installed . | . . . . . . . Triggered . | . . . . . . . Exploded 3 | . . . . . 3 . Machines | -11 -10 -10 -9 -9 -9 -8 ---------- Run | Scr Mat Min Mat Min Exi Min Machines Disabled 7 | . . . 2 . 5 . Max in Single Turn 1 | . . . 1 . 1 . Machines Sabotaged . | . . . . . . . Garrisons Compromised . | . . . . . . . Overloaded Fab Kills . | . . . . . . . Hacking | -11 -10 -10 -9 -9 -9 -8 --------- Run | Scr Mat Min Mat Min Exi Min Machines Accessed 28 | . 11 . 14 1 2 . Terminals 18 | . 8 . 9 1 . . Fabricators . | . . . . . . . Repair Stations 2 | . 1 . 1 . . . Recycling Units 4 | . 2 . 2 . . . Scanalyzers 2 | . . . 2 . . . Garrison Access . | . . . . . . . Total Hacks 95 | . 39 . 50 4 2 . Successful 53 | . 19 . 30 2 2 . Failed 40 | . 19 . 19 2 . . Catastrophic 5 | . 4 . 1 . . . Database Lockouts 2 | . 1 . 1 . . . Manual 49 | . 20 . 24 4 1 . Terminals 64 | . 32 . 28 4 . . Fabricators . | . . . . . . . Repair Stations 7 | . 2 . 5 . . . Recycling Units 11 | . 5 . 6 . . . Scanalyzers 11 | . . . 11 . . . Garrison Access . | . . . . . . . Terminal Hacks 21 | . 9 . 8 2 2 . Record 1 | . . . . . 1 . Robot Analysis 6 | . 3 . 1 2 . . Prototype ID Bank 2 | . . . 2 . . . Terminal Index 2 | . 1 . 1 . . . Locate Traps 4 | . 2 . 2 . . . Hauler Manifests 1 | . 1 . . . . . Registered Components 1 | . 1 . . . . . Zone Layout 3 | . 1 . 2 . . . EX-Prototype ID Bank 1 | . . . . . 1 . Fabricator Hacks . | . . . . . . . Repair Station Hacks 6 | . 2 . 4 . . . Scan Component 3 | . 1 . 2 . . . Repair 3 | . 1 . 2 . . . Recycling Unit Hacks 3 | . 1 . 2 . . . Retrieve Components 3 | . 1 . 2 . . . Scanalyzer 8 | . . . 8 . . . Insert Component 4 | . . . 4 . . . Analyze 4 | . . . 4 . . . Garrison Access Hacks . | . . . . . . . Unauthorized Hacks 15 | . 7 . 8 . . . Terminals 12 | . 6 . 6 . . . Botnet 11 | . 5 . 6 . . . Operators 1 | . 1 . . . . . Fabricators . | . . . . . . . Repair Stations . | . . . . . . . Recycling Units 3 | . 1 . 2 . . . Recyclers 2 | . . . 2 . . . Tunnel 1 | . 1 . . . . . Scanalyzers . | . . . . . . . Garrison Access . | . . . . . . . Data Cores Recovered 1 | . . . 1 . . . Used 1 | . . . 1 . . . Hacking Detections 24 | . 10 . 13 1 . . Full Trace Events 7 | . 2 . 5 . . . Feedback Events . | . . . . . . . Feedback Blocked . | . . . . . . . Robot Schematics Acquired . | . . . . . . . Robots Built . | . . . . . . . Authchips . | . . . . . . . Time . | . . . . . . . Total Robot Build Rating . | . . . . . . . Part Schematics Acquired 2 | . . . 2 . . . Parts Built . | . . . . . . . Authchips . | . . . . . . . Time . | . . . . . . . Total Part Build Rating . | . . . . . . . Parts Repaired 3 | . 1 . 2 . . . Time 78 | . 26 . 52 . . . Parts Recycled . | . . . . . . . Recycled Matter . | . . . . . . . Retrieved Matter . | . . . . . . . Retrieved Components 22 | . 3 . 19 . . . Parts Scanalyzed 3 | . . . 3 . . . Part Schematics Acquired 2 | . . . 2 . . . Parts Damaged . | . . . . . . . Bothacking | -11 -10 -10 -9 -9 -9 -8 ------------ Run | Scr Mat Min Mat Min Exi Min Used RIF Installer . | . . . . . . . Robots Hacked 4 | . . . . . 4 . Non-combat 3 | . . . . . 3 . Combat 1 | . . . . . 1 . Robot Hacks Applied 4 | . . . . . 4 . parse_system 4 | . . . . . 4 . Relay Couplers Released . | . . . . . . . Fabnet Peak Effective % . | . . . . . . . Robots Rewired . | . . . . . . . Allies Hacked . | . . . . . . . Hacks Repelled . | . . . . . . . Allies | -11 -10 -10 -9 -9 -9 -8 -------- Run | Scr Mat Min Mat Min Exi Min Total Allies 3 | . . 3 . . . . Largest Group 3 | . . 3 3 . . . Highest-Rated Group 40 | . . 40 40 . . . Highest-Rated Ally 16 | . . 16 16 . . . Total Orders 1 | . . . 1 . . . ROAM 1 | . . . 1 . . . Ally Attacks 34 | . . 15 19 . . . Total Damage 307 | . . 144 163 . . . Kills 4 | . . 2 2 . . . Allies Corrupted . | . . . . . . . Allies Melted . | . . . . . . . Intel | -11 -10 -10 -9 -9 -9 -8 ------- Run | Scr Mat Min Mat Min Exi Min Robot Analysis Total 6 | . 3 . 1 2 . . Derelict Logs Recovered 2 | . . 2 . . . . Drone Launches . | . . . . . . . Drone Recoveries . | . . . . . . . Exploration | -11 -10 -10 -9 -9 -9 -8 ------------- Run | Scr Mat Min Mat Min Exi Min Turns Passed 11464 | 124 1424 1114 4300 1139 3181 182 Spaces Moved 4225 | 38 707 448 1382 468 1131 51 Core 6 | 6 . . . . . . Treads 4219 | 32 707 448 1382 468 1131 51 Legs . | . . . . . . . Wheels . | . . . . . . . Hover . | . . . . . . . Flight . | . . . . . . . Fastest Speed 50 | 50 160 160 240 240 160 240 Average Speed 225 | 142 160 239 240 240 239 240 Slowest Speed 240 | 160 160 240 240 240 240 240 Overloaded Moves . | . . . . . . . Propulsion Burnouts . | . . . . . . . Robots Hopped . | . . . . . . . Cave-ins Triggered . | . . . . . . . Exploration Rate (%) 68 | 4 97 91 94 87 88 16 Regions Visited 6 Branch Regions 4 Pre-discovered Areas 2 | . 1 . . . 1 . Known Exits Taken 2 | . . 1 . . 1 . Unknown Exits Taken 4 | 1 1 . 1 1 . . Scrap Searched 5 | . . 1 . 4 . . Spaces Dug 7 | . . . 7 . . . Terrain Destroyed 52 | . . . 19 . 33 . Melee . | . . . . . . . Projectile 3 | . . . . . 3 . AOE 49 | . . . 19 . 30 . Terrain Rammed . | . . . . . . . Walls Destroyed . | . . . . . . . Machines Disabled . | . . . . . . . Actions | -11 -10 -10 -9 -9 -9 -8 --------- Run | Scr Mat Min Mat Min Exi Min Total 5443 | 68 878 481 2008 475 1441 92 Wait 430 | . 59 20 276 . 54 21 Move 4219 | 37 706 447 1381 467 1130 51 Hop . | . . . . . . . Pick Up 100 | 1 17 6 35 . 41 . Fast Attach 36 | 8 4 . 17 . 7 . Attach 30 | . 2 . 13 . 15 . Detach 19 | 1 4 . 7 . 7 . Swap 42 | . 5 2 27 2 5 1 Drop 99 | . 8 2 56 1 32 . Fire 417 | 21 73 4 196 5 118 . Melee 51 | . . . . . 32 19 Ram . | . . . . . . . Kick . | . . . . . . . Crush . | . . . . . . . Escape Stasis . | . . . . . . . Rewire . | . . . . . . . Trap . | . . . . . . . Miscellaneous . | . . . . . . . Route ------- -11/Scrapyard -10/Materials (discovered 4 exits: *Mat x3 / [*Min]) -10/Mines (discovered 2 exits: *Mat x2) -9/Materials (discovered 4 exits: *Mat x3 / *Min) -9/Mines (discovered 2 exits: *Mat / *Exi) -9/Exiles (discovered 2 exits: *Min x2) -8/Mines (discovered 1 exit: *Mat) History --------- Turn | Location | Event 2 | -11/Scrapyard | Met Revision 17 30 | -11/Scrapyard | Discovered new exit (range 15) 125 | -11/Scrapyard | Entered Materials 153 | -10/Materials | Central database locked down 316 | -10/Materials | Build established: Mutant 352 | -10/Materials | Discovered new exit (range 11) 425 | -10/Materials | Identified exit to Materials 655 | -10/Materials | Discovered new exit (range 5) 773 | -10/Materials | Discovered exit to Materials (range 11) 1052 | -10/Materials | Discovered exit to Materials (range 11) 1519 | -10/Materials | Repaired Assault Rifle 1549 | -10/Materials | Entered Mines 1657 | -10/Mines | Received a Rocket Launcher from a helpful Derelict 2001 | -10/Mines | Learned Materials emergency access door positions 2262 | -10/Mines | Discovered exit to Materials (range 9) 2279 | -10/Mines | Learned location of 1 exit from Materials 2288 | -10/Mines | Assisted by bots powering up and referring to "LRC-V3" 2570 | -10/Mines | Found a damaged Exp. Sensor Array with a note attached 2576 | -10/Mines | Found Prototype Device 2637 | -10/Mines | Discovered exit to Materials (range 5) 2663 | -10/Mines | Entered Materials 2663 | -9/Materials | Accompanied by 3 allies 2663 | -9/Materials | Evolved 2 slots: Utility x2 2664 | -9/Materials | Identified exit to Materials 3290 | -9/Materials | Build established: Scavenger-Mutant 3760 | -9/Materials | Repaired Assault Rifle 3787 | -9/Materials | Repaired Lgt. Treads 3854 | -9/Materials | Discovered new exit (range 6) 4228 | -9/Materials | Discovered exit to Materials (range 13) 4653 | -9/Materials | Central database locked down 5033 | -9/Materials | Discovered exit to Materials (range 13) 5103 | -9/Materials | Identified Exp. Sensor Array 5463 | -9/Materials | First assault squad dispatched 5564 | -9/Materials | Core integrity fell below 50% 5605 | -9/Materials | Destroyed 7 combat bots 5623 | -9/Materials | Build established: Mutant 6963 | -9/Materials | Entered Mines 7022 | -9/Mines | Met a Derelict bent on vengeance 7791 | -9/Mines | Discovered exit to Materials (range 9) 8093 | -9/Mines | Deemed a non-threat by the Exiles lab entrance 8093 | -9/Mines | Discovered new exit (range 5) 8102 | -9/Mines | Entered Exiles 8142 | -9/Exiles | Discovered new exit (range 14) 8171 | -9/Exiles | Met 8R-AWN 8213 | -9/Exiles | Met EX-HEX 8323 | -9/Exiles | Met EX-DEC 8389 | -9/Exiles | Learned location of Zion (-6) 8430 | -9/Exiles | Met EX-BIN 8465 | -9/Exiles | Aligned with FarCom system 8468 | -9/Exiles | Given EX-Vault access code 8525 | -9/Exiles | Opened EX-Vault 8539 | -9/Exiles | Found Superbattery 8591 | -9/Exiles | Warned to stay clear of 0b10 Research branches 8757 | -9/Exiles | Discovered new exit (range 10) 9362 | -9/Exiles | Found Supersonic Drone Bay 9375 | -9/Exiles | Found Longsword +1 9682 | -9/Exiles | Attacked by the Exiles 9831 | -9/Exiles | Lost 4 parts (1n1u2w) 9903 | -9/Exiles | Destroyed 8R-AWN 9910 | -9/Exiles | Found 8R-AWN's Boregun 9912 | -9/Exiles | Lost 5 parts (1p1n2u1w) 10034 | -9/Exiles | Core integrity fell below 20% 10280 | -9/Exiles | Destroyed EX-BIN 10425 | -9/Exiles | Destroyed EX-DEC 10427 | -9/Exiles | Build established: Scavenger-Mutant 10458 | -9/Exiles | Destroyed EX-HEX 10897 | -9/Exiles | Found Exp. Core Analyzer 10906 | -9/Exiles | Found Deploy-a-Sentry 10912 | -9/Exiles | Found System Purifier 11207 | -9/Exiles | Identified exit to Mines 11283 | -9/Exiles | Stole three prototypes: Longsword +1, Superbattery, Supersonic Drone Bay 11283 | -9/Exiles | Entered Mines 11436 | -8/Mines | Discovered exit to Materials (range 3) 11459 | -8/Mines | CL-ANK came to Exiles' defense 11465 | -8/Mines | Destroyed by CL-ANK with CL-ANK's Mallet Last Messages --------------- 11274_ Acquired Imp. VTOL Module. 11275_ Extracted 20 matter. A strange signal echoes through the mines. LOCATION=MINES GOAL=ESCAPE 11322_ G-47 Trooper destroyed. 11330_ G-50 Soldier destroyed. 11333_ G-47 Trooper destroyed. 11342_ Critical hit (Burn: +37). 11344_ G-50 Soldier destroyed. 11346_ Critical hit (Burn: +37). 11350_ Destroyed Particle Gun. 11356_ G-47 Trooper Aluminum Leg severed. 11358_ Destroyed Lgt. Nuclear Core. 11362_ G-47 Trooper destroyed. 11436_ EXIT=FOUND: MATERIALS 11459_ CL-ANK: "I came as fast as I could... Wait, it was you!" 11459_ CL-ANK sneak attacks. 11459_ U-05 Engineer suffers critical hit (Smash). 11459_ U-05 Engineer destroyed. Map ----- +----------------------------------------------------+ | | | | | | | | | | | | | | | | | | | | | | | | | | | | | | | | | | | ????????????????????????????????????????????????? | | ????????????????????????????????????????????????? | | ?????????????????#######????????????????????????? | | ?????????????????# #????????????????????????? | | ????###??????##### ### #????????????????????????? | | ???## ###???# #?# #????????????????????????? | | ???# ##### ### #?#=#????????????????????????? | | ????# #?# #?#%###??????????????????????? | | ????# ######?# #?#=b@#??????????????????????? | | ????# #??????# ## < #?????????????????????? | | ????## ##?????# ## #?????????????????????? | | ?????## ##????# ### #????????????????????? | | ??????# #????# #?# #????????????????????? | | ??????# #????# #?## ##????????????????????? | | ??????## #????? ???#####?????????????????????? | | ???????## ##????? ?????????????????????????????? | | ????????#= #?????? ?????????????????????????????? | | ?????####**#?????? ?????????????????????????????? | | ?????#[[%=%#?????? ?????????????????????????????? | | ?????#%##! ###???? ?????????????????????????????? | | ????##!##% ###?? #????????????????????????????? | | ???##%=## ### #????????????????????????????? | | ??## ==* """ ?????????????????????????????? | | ??# """ ###?????????????????????????????? | | ??# """ ##???????????????????????????????? | | ??# ##????????????????????????????????? | | ??## ## #?????????????????????????????????? | | ???###?## ##?????????????????????????????????? | | ????????### ##??????????????????????????????????? | | ??????????# #???????????????????????????????????? | | ??????????# #???????????????????????????????????? | | ??????????# #???????????????????????????????????? | | ??????????# #???????????????????????????????????? | +----------------------------------------------------+ Best States ------------- Heat Dissipation 42 Energy Generation 19 Energy Capacity 310 Matter Stores 300 Matter Capacity 300 Sight Range 16 Robot Scan Range 20 Terrain Scan Density 10 Armor Coverage 525 Resistance: KI 20 Core Shielding 20 Weapon Shielding 33 Evasion (%) 40 Targeting Accuracy 6 Recoil Reduction 2 Item Schematics ----------------- Hacking Suite | -9/Materials | Scanalyzed Imp. VTOL Module | -9/Materials | Scanalyzed Robot Schematics ------------------ None Fabricated ------------ Nothing Alien Tech Used ----------------- None Achievements -------------- None Challenges ------------ None Game ------ Seed ConcussiveHellfireKatana Manual? 0 Play Time 01:06:51 Cumulative 475.7 hours Start 2022.04.29 @ 06:35:21 End 2022.04.29 @ 07:42:23 Sessions 1 Manual Loads 0 Difficulty Rogue Special Mode None Game No. 393 Rogue 393 Adventurer 0 Explorer 0 Win Type - Total 3 Types 2/0/0/1/0/0/0/0/0 Lore% 68 Gallery% 77 Achievement% 66 Wizard Run 0 Options --------- ASCII 0 Keyboard 1 Movement Numpad Keybinds 0 Fullscreen 1 Font 12/Terminus Map View 83x54 Tactical HUD 1 Map Filters NONE Filters NONE Steam 1 RUN: 6cfc9c07-2d33-4727-bb16-9e3283a0821e